[Event "German Rapid Championship 2022"]
[Site "Goettingen"]
[Date "2022.09.24"]
[Round "4.3"]
[White "Svane, Rasmus"]
[Black "Muckle, Julius"]
[Result "1-0"]
[ECO "A06"]
[WhiteElo "2615"]
[BlackElo "2401"]
[Annotator "TA"]
[PlyCount "85"]
[EventDate "2022.09.24"]
[EventType "swiss"]
[EventCountry "GER"]
[SourceTitle "playchess.com"]
[Source "ChessBase"]
[SourceQuality "1"]
[TimeControl "900+10"]

{[%evp 11,85,16,15,22,27,22,39,31,33,20,50,62,54,52,58,58,70,72,73,46,62,39,30,29,56,52,50,63,82,70,79,50,66,17,100,85,67,60,118,127,126,116,144,167,159,163,157,148,139,156,183,174,185,185,227,234,250,264,277,277,277,277,271,267,537,539,643,637,634,629,608,607,640,606,605,398]} 1. Nf3 {[%emt 0:00:03]} d5 {[%emt 0:00:01]} 2. g3 {[%emt 0:00:03]} Nf6 {[%emt 0:00:02]} 3. Bg2 {[%emt 0:00:01]} c6 {[%emt 0:00:00]} 4. O-O {[%emt 0:00:03]} Bf5 {[%emt 0:00:02]} 5. c4 {[%emt 0:00:04]} e6 {[%emt 0:00:01]} 6. Qb3 {[%emt 0:00:02]} Qb6 {[%emt 0:00:11]} 7. d3 {[%emt 0:00:03] A11: English Opening: 1...c6.} Nbd7 {[%emt 0:00:25]} 8. cxd5 {[%emt 0:00:05]} Qxb3 {[%emt 0:00:46]} 9. axb3 {[%emt 0:00:02] White is slightly better.} exd5 {[%emt 0:00:03]} 10. Bd2 {[%emt 0:00:02]} Bc5 {[%emt 0:02:21]} 11. b4 {[%emt 0:00:07]} Bb6 {[%emt 0:00:06] [#]} 12. Nc3 $146 {[%emt 0:01:49]} ({Predecessor:} 12. Bc3 O-O 13. Nbd2 Rfe8 14. Rfe1 h6 15. Nd4 Bg6 16. Bh3 Nf8 17. N2b3 Ne6 18. Bg2 Nxd4 19. Nxd4 {½-½ (73) Banusz,T (2631)-Kazakov,M (2516) Tornelo INT 2021}) 12... O-O {[%emt 0:00:02]} 13. Na4 {[%emt 0:00:01]} Bc7 {[%emt 0:00:08]} 14. Nd4 {[%emt 0:00:10]} Bg6 {[%emt 0:00:13]} 15. Rfc1 {[%emt 0:00:53]} (15. b5 $5 {[%cal Rb5c6]}) 15... Rfe8 {[%emt 0:00:21]} 16. Kf1 {[%emt 0:01:21]} a6 {[%emt 0:08:01] Against b5} 17. h3 {[%emt 0:00:02]} Be5 {[%emt 0:00:51]} 18. Nb3 {[%emt 0:01:11]} Re7 {[%emt 0:01:18]} 19. f4 {[%emt 0:00:22]} Bd6 {[%emt 0:00:14]} 20. Bf3 {[%emt 0:00:03]} Rae8 {[%emt 0:00:46]} 21. Re1 {[%emt 0:00:11]} h5 {[%emt 0:00:40]} 22. Kg2 {[%emt 0:01:17]} (22. g4 $14) 22... Ne4 {[%emt 0:00:38]} 23. dxe4 $16 {[%emt 0:04:01]} dxe4 {[%emt 0:00:01]} 24. Bxh5 {[%emt 0:00:01]} e3 {White now steadily converts the win.} (24... Bxh5 $14 25. g4 Bg6) 25. Bc3 {[%emt 0:00:26]} (25. Bxg6 exd2 26. Nxd2 Rxe2+ 27. Kf1 Rxe1+ 28. Rxe1 Rxe1+ 29. Kxe1 fxg6 $17) 25... Bxh5 {[%emt 0:01:13]} 26. Rad1 {[%emt 0:00:01][%cal Ba1d1,Bd1d3,Bd3d7][%mdl 32]} Bc7 {[%emt 0:00:25] [#]} 27. g4 $1 Bg6 {Hoping for ...Bc2.} 28. f5 {[%emt 0:00:02]} Bh7 {[%emt 0:00:00]} 29. Nac5 {[%emt 0:00:20]} Nxc5 {[%emt 0:00:25]} 30. Nxc5 {[%emt 0:00:14]} Bb6 {[%emt 0:00:38]} 31. Rd3 {[%emt 0:00:45]} Bxc5 {[%emt 0:00:02]} 32. bxc5 {[%emt 0:00:02]} Re4 {[%emt 0:00:17]} 33. Rd7 {[%emt 0:01:18]} g6 {[%emt 0:00:10]} 34. Rf1 {[%emt 0:00:10]} ({Don't play} 34. Rxb7 $6 gxf5 35. Kg3 Rc4 $16) 34... gxf5 {[%emt 0:00:11]} 35. gxf5 {[%emt 0:00:01]} Rc4 {[%emt 0:00:01]} 36. Rf3 {[%emt 0:00:25]} ({Not} 36. Rxb7 Rxc5 37. Rb4 f6 $14) 36... Kf8 {[%emt 0:00:03]} 37. Rxb7 {[%emt 0:00:15] Strongly threatening Rc7.} Rd8 $2 {[%emt 0:00:28]} (37... a5 38. Kg3 (38. Bxa5 Rc2 $16) 38... Rxc5) 38. Rc7 $18 {[%emt 0:00:50] White is clearly winning.} Rd5 {[%emt 0:00:13]} 39. Rc8+ {[%emt 0:00:14]} Ke7 {[%emt 0:00:01]} 40. Rxe3+ {[%emt 0:00:02]} Kd7 {[%emt 0:00:14]} 41. Rce8 {[%emt 0:00:55][%csl Ge8][%cal Re3e7] [#]} Rdxc5 {[%emt 0:00:14]} 42. R3e7+ {[%emt 0:00:08]} Kd6 {[%emt 0:00:09]} 43. e4 {[%emt 0:00:20] Weighted Error Value: White=0.05 (flawless) /Black=0.27 (precise)} 1-0

[Event "German Rapid Championship 2022"]
[Site "Goettingen"]
[Date "2022.09.24"]
[Round "4.4"]
[White "Fridman, Daniel"]
[Black "Hoepfl, Thomas"]
[Result "1-0"]
[ECO "E62"]
[WhiteElo "2607"]
[BlackElo "2279"]
[Annotator "TA"]
[PlyCount "73"]
[EventDate "2022.09.24"]
[EventType "swiss"]
[EventCountry "GER"]
[SourceTitle "playchess.com"]
[Source "ChessBase"]
[SourceQuality "1"]
[TimeControl "900+10"]

{[%evp 18,73,37,42,35,39,77,77,96,82,82,70,90,85,90,85,85,53,89,89,84,75,83,81,101,93,100,100,200,63,63,63,63,62,132,41,91,89,97,98,101,94,100,100,90,102,96,91,168,167,260,281,264,258,241,237,29992,29993]} 1. d4 {[%emt 0:00:03]} Nf6 {[%emt 0:00:01]} 2. c4 {[%emt 0:00:02]} g6 {[%emt 0:00:01]} 3. Nf3 {[%emt 0:00:04]} Bg7 {[%emt 0:00:01]} 4. g3 {[%emt 0:00:01]} O-O {[%emt 0:00:01]} 5. Bg2 {[%emt 0:00:02]} d6 {[%emt 0:00:01]} 6. Nc3 {[%emt 0:00:01]} Nc6 {[%emt 0:00:01]} 7. O-O {[%emt 0:00:03]} e5 {[%emt 0:00:01]} 8. dxe5 {[%emt 0:00:11]} dxe5 {[%emt 0:00:02] 8...dxe5 is better than 8...Nxe5.} 9. Bg5 {[%emt 0:00:04]} Be6 {[%emt 0:00:01]} 10. Qa4 {[%emt 0:00:02]} Qe8 {[%emt 0:00:16] E62: King's Indian: Fianchetto: 6...c6 and Panno Variation (6...Nc6) without ...a6.} 11. Nd2 $5 {[%emt 0:00:50][%mdl 4] An interesting side line.} Nd4 {[%emt 0:01:50][%cal Od4e2]} 12. Qxe8 $1 {[%emt 0:00:06]} Raxe8 {[%emt 0:00:18] White is better.} 13. e3 {[%emt 0:00:03]} (13. Bxb7 Rb8 14. Bxf6 Bxf6 $15) 13... Nf5 {[%emt 0:00:39] [#]} 14. Nb5 $146 {[%emt 0:00:42]} (14. Bxb7 Nd7 $11) ({Predecessor:} 14. Bxf6 Bxf6 15. Bxb7 Rb8 16. Bd5 Rxb2 17. Nde4 Be7 18. Bxe6 fxe6 19. c5 Kf7 20. Rfd1 {½-½ (61) Bogner,S (2600)-Yankelevich,L (2447) Riga 2017}) 14... c6 {[%emt 0:02:33]} 15. Nc7 {[%emt 0:00:04]} (15. Nxa7 Ra8 16. Nxc6 bxc6 17. Bxc6 Rac8 18. Bxf6 Bxf6 $17) 15... Re7 {[%emt 0:00:05]} 16. Nxe6 {[%emt 0:00:11]} Rxe6 {[%emt 0:00:04]} 17. Nb3 {[%emt 0:00:28]} h6 {[%emt 0:00:23]} 18. Bxf6 {[%emt 0:00:12]} Bxf6 {[%emt 0:00:04]} 19. Nc5 {[%emt 0:00:16][%csl LRb7,LRe6]} Re7 {[%emt 0:00:04]} 20. Rfd1 {[%emt 0:00:04] Against Rd8. aiming for Nd7.} Rc8 {[%emt 0:00:44]} 21. Ne4 {[%emt 0:00:26]} Bg7 {[%emt 0:00:27]} 22. Bh3 {[%emt 0:00:02]} Rcc7 {[%emt 0:00:17]} (22... Rb8 $16 {was called for.}) 23. Bxf5 {[%emt 0:00:03]} ({White should play} 23. Rd8+ $18 Kh7 24. Rad1) 23... gxf5 $14 {[%emt 0:00:01]} 24. Nd6 {[%emt 0:00:02]} f4 $1 {[%emt 0:00:05]} 25. e4 {[%emt 0:00:19] White is more active.} (25. gxf4 exf4 26. Nf5 Re4 $11) 25... Red7 {[%emt 0:00:19] [#]} (25... fxg3 $14 26. hxg3 (26. fxg3 Bf8 $14) 26... Red7) 26. Nf5 {[%emt 0:00:02]} ({White should try} 26. Ne8 $1 $16 {[%cal Re8c7]} Rxd1+ 27. Rxd1) 26... Bf8 {[%emt 0:00:18]} (26... b5 $14) 27. gxf4 $16 {[%emt 0:01:40]} exf4 {[%emt 0:00:02]} 28. Kg2 {[%emt 0:00:01]} b5 {[%emt 0:01:24]} 29. c5 {[%emt 0:01:29]} Bxc5 {[%emt 0:00:18]} 30. Nxh6+ {[%emt 0:00:02]} Kh7 {[%emt 0:00:31]} 31. Nf5 {[%emt 0:00:02]} Bf8 {[%emt 0:00:32]} 32. Kf3 {[%emt 0:00:09]} c5 {[%emt 0:00:10] [#]} (32... Rxd1 $16 33. Rxd1 c5) 33. Rd5 $1 $18 {[%emt 0:00:35]} (33. Kxf4 Rxd1 34. Rxd1 c4 $16) 33... Rb7 {[%emt 0:00:42]} (33... Rxd5 {keeps fighting.} 34. exd5 Bg7) 34. Rad1 {[%emt 0:00:19]} (34. Kxf4 $6 c4 35. Rad1 Rdc7 $18) 34... Rdc7 {[%emt 0:00:00]} 35. Rg1 {[%emt 0:02:15] Strongly threatening Rd8.} ({Resist} 35. Kxf4 $6 c4 36. Rd8 Bg7 $18) 35... Rb6 {[%emt 0:00:34]} 36. Rd8 {[%emt 0:00:22]} ({But not} 36. Kxf4 $6 Bh6+ 37. Nxh6 Rxh6) 36... Bh6 {[%emt 0:00:29]} (36... Rg6 $18) 37. Rgg8 {[%emt 0:00:21] Weighted Error Value: White=0.09 (flawless) /Black=0.49} 1-0

[Event "German Rapid Championship 2022"]
[Site "Goettingen"]
[Date "2022.09.24"]
[Round "4.5"]
[White "Langrock, Hannes"]
[Black "Laux, Dominik"]
[Result "1/2-1/2"]
[ECO "D02"]
[WhiteElo "2358"]
[BlackElo "2248"]
[Annotator "TA"]
[PlyCount "62"]
[EventDate "2022.09.24"]
[EventType "swiss"]
[EventCountry "GER"]
[SourceTitle "playchess.com"]
[Source "ChessBase"]
[SourceQuality "1"]
[TimeControl "900+10"]

{[%evp 11,62,0,11,0,0,0,0,0,0,0,0,0,15,-8,14,14,12,6,11,0,23,8,44,48,71,71,74,72,72,64,74,25,37,24,27,29,48,41,31,18,24,31,23,19,29,22,34,4,8,8,49,47,40]} 1. d4 {[%emt 0:00:03]} d5 {[%emt 0:00:02]} 2. Nf3 {[%emt 0:00:02]} Nf6 {[%emt 0:00:03]} 3. g3 {[%emt 0:00:02]} Bf5 {[%emt 0:00:05]} 4. Bg2 {[%emt 0:00:07]} e6 {[%emt 0:00:13]} 5. c4 {[%emt 0:00:04]} c6 {[%emt 0:00:19]} 6. Nc3 {[%emt 0:00:04]} h6 {[%emt 0:00:22]} 7. Qb3 {[%emt 0:00:05] D11: Slav Defence: 3 Nf3 sidelines and 3...Nf6 4 e3 Bg4.} Qb6 {[%emt 0:00:05]} 8. c5 {[%emt 0:00:04]} Qxb3 {[%emt 0:00:18]} 9. axb3 {[%emt 0:00:03][%cal Ba2b3,Bb3b4][%mdl 32] The position is equal.} Be7 {[%emt 0:00:13]} 10. h3 {[%emt 0:00:13]} O-O {[%emt 0:00:12]} 11. g4 {[%emt 0:00:07]} Bh7 {[%emt 0:00:15]} 12. b4 {[%emt 0:00:44]} a6 {[%emt 0:00:05]} 13. Bf4 {[%emt 0:00:13]} Nbd7 {[%emt 0:00:26]} 14. Nd2 {[%emt 0:00:13]} Rfe8 {[%emt 0:00:22]} 15. Nb3 {[%emt 0:00:29]} Bd8 {[%emt 0:00:18]} 16. b5 {[%emt 0:03:08]} cxb5 {[%emt 0:02:08]} 17. Nxb5 {[%emt 0:00:14] [#] Threatens to win with Nd6.} Bc2 $146 {[%emt 0:00:42]} ({Predecessor:} 17... e5 18. dxe5 Nxe5 19. O-O Nc4 20. Nc3 Be4 21. Nxe4 Nxe4 22. f3 Ng5 23. e4 Ne6 {½-½ (44) Langrock,H (2351)-Gressmann,M (2094) Berlin 2022}) 18. Nd2 {[%emt 0:00:22]} e5 {[%emt 0:00:18]} 19. dxe5 {[%emt 0:00:22]} Nxe5 {[%emt 0:00:02] Strongly threatening ...Nd3+.} 20. O-O {[%emt 0:00:10]} Nc6 {[%emt 0:01:03]} 21. Rfe1 {[%emt 0:01:24]} (21. Rfc1 $16 Bh7 22. e3) 21... Ba5 $11 {[%emt 0:01:43] [#]} 22. Rxa5 {[%emt 0:00:22]} Nxa5 {[%emt 0:00:02]} 23. Nc7 {[%emt 0:00:02][%csl LRa8,LRd5,LRe8]} Nc6 {[%emt 0:00:32]} 24. Nxa8 {[%emt 0:02:13]} Rxa8 {[%emt 0:00:03]} 25. h4 {[%emt 0:01:39][%cal Bh3h4,Bh4g5][%mdl 32]} Re8 {[%emt 0:01:44]} 26. g5 {[%emt 0:00:09]} hxg5 {[%emt 0:00:05]} 27. hxg5 {[%emt 0:00:01]} Ne4 {[%emt 0:00:03]} 28. Nxe4 {[%emt 0:01:31]} Bxe4 {[%emt 0:00:37]} 29. Bh3 {[%emt 0:00:27]} Nd4 {[%emt 0:01:01][%cal Oe4d3]} 30. Kf1 {[%emt 0:00:57]} Ne6 {[%emt 0:02:29]} 31. Bxe6 {[%emt 0:00:26]} fxe6 {[%emt 0:00:29] Weighted Error Value: White=0.07 (flawless) /Black=0.08 (flawless)} 1/2-1/2

[Event "German Rapid Championship 2022"]
[Site "Goettingen"]
[Date "2022.09.24"]
[Round "4.6"]
[White "Woelk, Tom-Frederic"]
[Black "Spiess, Gunter"]
[Result "1/2-1/2"]
[ECO "C11"]
[WhiteElo "2289"]
[BlackElo "2384"]
[Annotator "TA"]
[PlyCount "75"]
[EventDate "2022.09.24"]
[EventType "swiss"]
[EventCountry "GER"]
[SourceTitle "playchess.com"]
[Source "ChessBase"]
[SourceQuality "1"]
[TimeControl "900+10"]

{[%evp 13,75,1,7,-23,-20,-49,-51,-60,-54,-73,-52,-45,-37,-45,-47,-47,-47,-55,-50,-55,-44,-12,0,-53,-26,-33,-31,-37,0,-5,-4,-12,3,0,8,1,16,0,9,0,5,0,0,0,0,0,0,0,0,0,0,0,0,0,0,0,0,0,0,0,0,0,0,-6]} 1. e4 {[%emt 0:00:10]} e6 {[%emt 0:00:00]} 2. d4 {[%emt 0:00:32]} d5 {[%emt 0:00:01]} 3. Nc3 {[%emt 0:00:37]} Nf6 {[%emt 0:00:02]} 4. e5 {[%emt 0:00:02]} Nfd7 {[%emt 0:00:01]} 5. f4 {[%emt 0:00:01]} c5 {[%emt 0:00:01]} 6. Nf3 {[%emt 0:00:01]} Nc6 {[%emt 0:00:01]} 7. Ne2 {[%emt 0:00:07]} b5 {[%emt 0:00:10] 7...Be7 gains popularity.} 8. dxc5 {[%emt 0:00:16] C05: French Tarrasch: 3...Nf6 4 e5 Nfd7, 5 f4 and 5 Bd3 sidelines.} Bxc5 {[%emt 0:00:27]} 9. Ned4 {[%emt 0:00:07]} Nxd4 {[%emt 0:00:56]} 10. Nxd4 {[%emt 0:00:02] [#] Black is slightly better.} Nxe5 $1 {[%emt 0:02:12]} 11. Bxb5+ {[%emt 0:00:03]} (11. fxe5 Qh4+) 11... Nd7 {[%emt 0:00:02] [#]} (11... Bd7 $5 {[%cal Rd7b5]} 12. a4 (12. fxe5 $2 Qh4+ 13. Ke2 Bxd4 $19) 12... Bxb5 13. axb5 Nc4 $17) 12. Nb3 $146 {[%emt 0:01:56]} ({Predecessor:} 12. O-O Qb6 13. Bxd7+ Bxd7 14. c3 O-O 15. Kh1 f6 16. a4 a5 17. Nb3 Be7 18. Rf3 {½-½ (41) Baier,R (1935)-Niering,M (2218) Berlin 2019}) 12... Bb6 {[%emt 0:00:51]} 13. Qe2 {[%emt 0:00:06]} O-O {[%emt 0:00:19]} 14. Be3 {[%emt 0:00:07]} Nf6 {[%emt 0:00:38]} 15. O-O {[%emt 0:00:25]} Rb8 {[%emt 0:01:21] And now ...Bxe3+ would win.} 16. Bd3 {[%emt 0:00:47]} Bxe3+ {[%emt 0:01:39]} 17. Qxe3 {[%emt 0:00:28]} Qb6 {[%emt 0:00:14]} 18. Rae1 {[%emt 0:01:40]} ({Better is} 18. Qxb6 $11 Rxb6 19. Rab1) 18... Ba6 {[%emt 0:01:34]} 19. f5 {[%emt 0:00:32]} Bxd3 {[%emt 0:01:35]} (19... exf5 {is more complex.} 20. Qxb6 Rxb6 21. Rxf5 Bxd3 22. cxd3 Ra6) 20. cxd3 {[%emt 0:00:01][%cal Rf5e6]} Rfe8 {[%emt 0:00:51]} 21. fxe6 {[%emt 0:00:30] The position is equal.} Rxe6 {[%emt 0:00:13][%mdl 64] [#] Pin} 22. Qxb6 {[%emt 0:00:05]} Rbxb6 {[%emt 0:00:03]} 23. Rxe6 {[%emt 0:00:19]} fxe6 $11 {[%emt 0:00:04][%mdl 4096] Endgame KRN-KRN} 24. Rc1 {[%emt 0:00:01]} a5 {[%emt 0:00:12]} 25. Rc8+ {[%emt 0:00:03]} Kf7 {[%emt 0:00:07]} 26. Ra8 {[%emt 0:00:01]} Rc6 {[%emt 0:00:02]} 27. Nd4 {[%emt 0:00:10]} Rc1+ {[%emt 0:00:20]} 28. Kf2 {[%emt 0:00:01]} e5 {[%emt 0:00:04]} 29. Nf3 {[%emt 0:02:24]} Rc2+ {[%emt 0:00:04]} 30. Kg3 {[%emt 0:00:17]} e4 {[%emt 0:01:09]} 31. dxe4 {[%emt 0:00:27]} Nxe4+ {[%emt 0:00:22]} 32. Kf4 {[%emt 0:00:05]} Rxg2 {[%emt 0:00:39]} 33. Rxa5 {[%emt 0:00:28]} Rxb2 {[%emt 0:00:09]} 34. Rxd5 {[%emt 0:00:25]} Nf6 {[%emt 0:00:27]} 35. Ra5 {[%emt 0:00:28]} Rb4+ {[%emt 0:00:04]} 36. Kg3 {[%emt 0:00:40]} Ne4+ {[%emt 0:00:20]} 37. Kh3 {[%emt 0:00:15]} h6 {[%emt 0:00:10]} 38. Ne5+ {[%emt 0:00:59] Weighted Error Value: White=0.08 (flawless) /Black=0.06 (flawless)} 1/2-1/2

[Event "German Rapid Championship 2022"]
[Site "Goettingen"]
[Date "2022.09.24"]
[Round "4.7"]
[White "Knuedel, Torben"]
[Black "Hampel, Felix"]
[Result "1-0"]
[ECO "B47"]
[WhiteElo "2221"]
[BlackElo "2326"]
[Annotator "TA"]
[PlyCount "179"]
[EventDate "2022.09.24"]
[EventType "swiss"]
[EventCountry "GER"]
[SourceTitle "playchess.com"]
[Source "ChessBase"]
[SourceQuality "1"]
[TimeControl "900+10"]

{[%evp 18,179,31,29,122,112,120,104,110,78,85,76,81,70,85,82,163,168,159,110,110,102,134,134,137,143,136,127,147,73,106,88,120,121,141,148,156,142,146,155,169,75,83,72,77,81,92,74,161,155,156,152,149,152,183,183,166,134,138,108,171,134,121,142,131,134,136,136,246,233,209,194,410,388,398,355,483,483,612,622,1386,1248,1147,949,2682,2617,2693,1794,10499,9652,5089,6102,29959,29961,29969,29970,29970,29971,29973,29972,29972,29973,29973,29974,29974,29972,29974,29971,29971,29967,29975,29976,29976,29977,29979,29980,29984,29985,29985,29986,29986,29987,29990,29975,29976,29974,29976,29977,29987,29976,29976,29977,29977,29978,29981,29975,29974,29975,29975,29972,29979,29979,29979,29978,29979,29980,29989,29990,29990,29991,29992,29993,29993,29991,29991,29992,29995,29991,29995,29988,29988,29989,29989,29990]} 1. e4 {[%emt 0:00:02]} c5 {[%emt 0:00:01]} 2. Nf3 {[%emt 0:00:08]} e6 {[%emt 0:00:02]} 3. d4 {[%emt 0:00:02]} cxd4 {[%emt 0:00:02]} 4. Nxd4 {[%emt 0:00:02]} Nc6 {[%emt 0:00:01]} 5. Nc3 {[%emt 0:00:06]} Qc7 {[%emt 0:00:01]} 6. f4 {[%emt 0:00:10]} a6 {[%emt 0:00:02]} 7. Nxc6 {[%emt 0:00:02]} Qxc6 {[%emt 0:00:16]} 8. Bd3 {[%emt 0:00:02]} b5 {[%emt 0:00:56]} 9. Qe2 {[%emt 0:00:15]} Bb7 {[%emt 0:00:05]} 10. Bd2 {[%emt 0:01:14]} d6 {[%emt 0:01:30] [#] B47: Sicilian: Taimanov: 5 Nc3 Qc7 6 f4, 6 g3 and 6 Be2.} (10... Be7 $11) 11. Nxb5 $1 $16 {[%emt 0:00:58][%cal Of4f5][%mdl 512]} Nf6 {[%emt 0:00:29]} (11... axb5 $2 12. Bxb5 Nf6 13. e5 dxe5 14. Bxc6+ $18) 12. Nc3 {[%emt 0:01:42]} Be7 {[%emt 0:00:16] White is better.} 13. O-O {[%emt 0:01:13]} O-O {[%emt 0:00:03] [#]} 14. Rae1 $146 {[%emt 0:00:02]} ({Predecessor:} 14. Kh1 Nd7 15. Qh5 Bf6 16. Rae1 Rab8 17. Nd5 Bd8 18. Bc3 g6 19. Qh6 f6 20. Rf3 {1-0 (29) Toth,A (2382)-Krutti,V (2385) Paks 2001}) 14... Rab8 {[%emt 0:02:25]} 15. Kh1 {[%emt 0:00:07]} d5 {[%emt 0:01:04]} 16. exd5 {[%emt 0:00:58]} Nxd5 {[%emt 0:00:05]} (16... exd5 $16 {was worth a try.} 17. Qxe7 Rfe8) 17. Nxd5 $18 {[%emt 0:00:04]} Qxd5 {[%emt 0:00:03]} 18. b3 {[%emt 0:00:38]} (18. Bc3 $142) 18... Bf6 {[%emt 0:00:14]} 19. Be4 {[%emt 0:01:26]} (19. f5 {seems wilder.} e5 20. Be4 Qd4 21. Bxb7 Rxb7 22. c3) 19... Qxe4 {[%emt 0:00:40]} 20. Qxe4 {[%emt 0:00:02]} Bxe4 {[%emt 0:00:01]} 21. Rxe4 {[%emt 0:00:01]} Rfd8 {[%emt 0:00:02]} 22. Re2 {[%emt 0:02:17]} Rbc8 {[%emt 0:00:17]} 23. Be3 {[%emt 0:00:37]} ({White should play} 23. c4) 23... Rc3 {[%emt 0:00:21]} 24. g3 {[%emt 0:00:10]} h5 {[%emt 0:01:10]} 25. Kg2 {[%emt 0:00:21]} Kh7 {[%emt 0:00:09]} 26. Rc1 {[%emt 0:00:08]} Rdc8 {[%emt 0:00:26]} 27. Bf2 {[%emt 0:00:15]} g5 {[%emt 0:01:09] [#]} 28. Be1 $1 {[%emt 0:01:05]} R3c5 {[%emt 0:00:01]} 29. Bb4 {[%emt 0:01:14]} (29. c4 $18 {has better winning chances.}) 29... Rb5 $16 {[%emt 0:03:22]} 30. fxg5 {[%emt 0:00:16]} Bxg5 {[%emt 0:00:39]} 31. Bd2 {[%emt 0:00:01]} Bxd2 {[%emt 0:00:35]} 32. Rxd2 {[%emt 0:00:02][%mdl 4096] Endgame KRR-KRR} Rbc5 {[%emt 0:00:00]} (32... Rc3 $16 {was necessary.}) 33. c4 $18 {[%emt 0:00:04]} a5 {[%emt 0:00:01]} 34. Rf1 {[%emt 0:00:20]} Kg6 {[%emt 0:00:04]} 35. Rd7 {[%emt 0:00:05]} f5 {[%emt 0:00:12]} 36. Re1 {[%emt 0:00:15]} R8c6 {[%emt 0:00:09]} 37. Ra7 {[%emt 0:00:17]} Kf6 {[%emt 0:00:29]} 38. Ra8 {[%emt 0:01:02] White is much more active.} Rd6 {[%emt 0:00:13]} (38... Rc8 $16 39. Ra6 R8c6) 39. Re2 {[%emt 0:00:02]} e5 {[%emt 0:00:47]} 40. Rf8+ {[%emt 0:01:19]} Kg6 {[%emt 0:00:06]} 41. Rg8+ {[%emt 0:00:07]} Kf6 {[%emt 0:00:09]} 42. h4 {[%emt 0:00:12]} e4 {[%emt 0:00:41]} (42... Rd3 $16 43. Rg5 a4) 43. Rg5 {[%emt 0:00:09]} a4 {[%emt 0:02:44]} 44. Rxh5 {[%emt 0:00:35] Threatens to win with g4.} Kg6 $2 {[%emt 0:00:14]} (44... Rd3 {was called for.} 45. g4 (45. bxa4 Rxc4 46. Rf2 Rf3 $16) 45... axb3 46. axb3 e3) 45. Rg5+ {[%emt 0:00:16]} Kf6 {[%emt 0:00:02]} 46. g4 {[%emt 0:01:03]} axb3 {[%emt 0:00:10]} 47. axb3 {[%emt 0:00:01]} Rd3 {[%emt 0:00:15]} 48. Rf2 {[%emt 0:00:41]} Rxb3 {[%emt 0:00:04]} 49. Rgxf5+ {[%emt 0:00:03]} Rxf5 {[%emt 0:00:02]} 50. Rxf5+ {[%emt 0:00:02] KR-KR} Kg6 {[%emt 0:00:21]} 51. h5+ {[%emt 0:00:23]} Kh6 {[%emt 0:00:13]} 52. Re5 {[%emt 0:00:02]} e3 {[%emt 0:00:04]} 53. Kf3 {[%emt 0:00:16]} Rc3 {[%emt 0:00:01]} 54. c5 {[%emt 0:00:14]} Rc4 {[%emt 0:00:20]} 55. Re6+ {[%emt 0:00:12] White mates.} Kh7 {[%emt 0:00:07]} 56. Rxe3 {[%emt 0:00:21]} Rxc5 {[%emt 0:00:01]} 57. Kf4 {[%emt 0:00:01]} Rc4+ {[%emt 0:00:01]} 58. Re4 {[%emt 0:00:01]} Rc1 {[%emt 0:00:15]} 59. Kf5 {[%emt 0:00:02]} Rf1+ {[%emt 0:00:12]} 60. Kg5 {[%emt 0:00:02]} Rf7 {[%emt 0:00:03]} 61. Re5 {[%emt 0:00:09]} Ra7 {[%emt 0:00:03]} 62. Kf6 {[%emt 0:00:08]} Kh6 {[%emt 0:00:21]} 63. Re6 {[%emt 0:00:20]} Rb7 {[%emt 0:00:37]} 64. Kf5+ {[%emt 0:00:06]} Kg7 {[%emt 0:00:03]} 65. g5 {[%emt 0:00:05]} Rb5+ {[%emt 0:00:02]} 66. Re5 {[%emt 0:00:01]} Rb7 {[%emt 0:00:03]} 67. h6+ {[%emt 0:00:12]} Kh7 {[%emt 0:00:01]} 68. Kf6 {[%emt 0:00:06]} Rb6+ {[%emt 0:00:38]} 69. Re6 {[%emt 0:00:04]} Rb8 {[%emt 0:00:06]} 70. Kf5 {[%emt 0:00:13]} Rb7 {[%emt 0:00:17]} 71. Kg4 {[%emt 0:00:06]} Ra7 {[%emt 0:00:06]} 72. Kh5 {[%emt 0:00:03]} Ra8 {[%emt 0:00:03]} 73. Rf6 {[%emt 0:00:39]} Ra5 {[%emt 0:00:15]} 74. Rf7+ {[%emt 0:00:21]} Kg8 {[%emt 0:00:01]} 75. Re7 {[%emt 0:00:03]} Kh8 {[%emt 0:00:07]} 76. Re1 {[%emt 0:00:33]} Kh7 {[%emt 0:00:03]} 77. Rf1 {[%emt 0:00:04]} Rb5 {[%emt 0:00:06]} 78. Kg4 {[%emt 0:00:08]} Rb6 {[%emt 0:00:34]} 79. Rf7+ {[%emt 0:00:12]} Kg8 {[%emt 0:00:02]} 80. Re7 {[%emt 0:00:04]} Rb4+ {[%emt 0:00:05]} 81. Kf5 {[%emt 0:00:03]} Rb5+ {[%emt 0:00:02]} 82. Kf6 {[%emt 0:00:02]} Rb6+ {[%emt 0:00:24]} 83. Re6 {[%emt 0:00:02]} Rb8 {[%emt 0:00:02]} 84. g6 {[%emt 0:00:04][%cal Bg5g6,Bg6g7][%mdl 32]} Ra8 {[%emt 0:00:10]} 85. Re5 {[%emt 0:00:11]} Ra6+ {[%emt 0:00:12]} 86. Kg5 {[%emt 0:00:01][%cal Re5e8]} Ra8 {[%emt 0:00:04]} 87. Rf5 {[%emt 0:00:02]} Rb8 {[%emt 0:00:06]} 88. g7 {[%emt 0:00:25]} Kh7 {[%emt 0:00:16]} 89. Rf8 {[%emt 0:00:18][%csl Gf8][%cal Rg7g8]} Rb5+ {[%emt 0:00:16]} 90. Kf4 {[%emt 0:00:04] Weighted Error Value: White=0.12 (very precise) /Black=0.49} 1-0